[Event "EICC 2019"]
[Site "Skopia"]
[Date "2019.03.26"]
[Round "8.1"]
[White "Grandelius, Nils"]
[Black "Piorun, Kacper"]
[Result "1/2-1/2"]
[ECO "B11"]
[WhiteElo "2694"]
[BlackElo "2631"]
[Annotator "ChessBase"]
[PlyCount "44"]
[EventDate "2019.03.18"]
[EventType "swiss"]
[EventCountry "MKD"]
[SourceTitle "playchess.com"]
[Source "ChessBase"]
[SourceQuality "1"]
[TimeControl "40/5400+30:1800+30"]

1. e4 {[%emt 0:00:00]} c6 {[%emt 0:00:00]} 2. Nf3 {[%emt 0:01:39]} d5 {[%emt 0:00:27]} 3. Nc3 {[%emt 0:00:06]} Bg4 {[%emt 0:05:58]} 4. h3 {[%emt 0:00:41]} Bxf3 {[%emt 0:00:29]} 5. Qxf3 {[%emt 0:00:09]} Nf6 {[%emt 0:01:49]} 6. d4 {[%emt 0:03:28]} e6 {[%emt 0:00:10]} 7. Bd3 {[%emt 0:00:51]} dxe4 {[%emt 0:04:21]} 8. Nxe4 {[%emt 0:00:10]} Qxd4 {[%emt 0:00:55]} 9. O-O {[%emt 0:02:34]} Be7 {[%emt 0:04:56]} 10. Bf4 {[%emt 0:19:46]} Nbd7 {[%emt 0:12:19]} 11. c3 {[%emt 0:03:23]} Qd5 {[%emt 0:01:47]} 12. Rfd1 {[%emt 0:29:53]} Ne5 {[%emt 0:09:37]} 13. Qe3 {[%emt 0:00:34]} Nxd3 {[%emt 0:04:39]} 14. Nxf6+ {[%emt 0:00:07]} Bxf6 {[%emt 0:11:07]} 15. Rxd3 {[%emt 0:00:08]} Qf5 {[%emt 0:00:15]} 16. Bd6 {[%emt 0:03:14]} Bg5 {[%emt 0:03:34]} 17. Qd4 {[%emt 0:06:53]} Bf6 {[%emt 0:00:11]} 18. Qe3 {[%emt 0:01:05]} h5 {[%emt 0:09:41]} 19. Rad1 {[%emt 0:01:46]} Bg5 {[%emt 0:05:50]} 20. Qd4 {[%emt 0:01:45]} Bf6 {[%emt 0:00:47]} 21. Qe3 {[%emt 0:01:58]} Bg5 {[%emt 0:00:06]} 22. Qd4 {[%emt 0:06:08]} Bf6 {[%emt 0:01:54]} 1/2-1/2